bitfinex/quotes_SOLUSD_20250201
["timestamp","ask_amount","ask_price","bid_price","bid_amount"]
[1738433333700,20.0,226.97,226.96,0.03]
[1738433334902,20.0,226.99,226.96,0.03]
[1738433336688,0.063,227.01,226.96,0.03]
[1738433339283,20.0,226.99,226.96,0.03]
[1738433344940,0.063,227.01,226.96,0.03]
[1738433345320,0.063,227.01,226.99,12.83004235]
[1738433346132,0.063,227.01,227.0,17.89600918]
[1738433348632,0.063,227.01,227.0,100.39600918]
[1738433348822,0.063,227.01,227.0,235.33524235]
[1738433349340,0.063,227.01,227.0,236.93244235]
[1738433349505,0.063,227.01,227.0,250.34429088]
[1738433349708,0.0001,227.11,227.09,12.83004235]
[1738433349926,0.0001,227.11,227.1,12.83004235]
[1738433351005,0.0001,227.11,227.1,13.49043297]
[1738433352837,0.0001,227.11,227.1,149.09043297]
[1738433353009,0.0001,227.11,227.1,148.43004235]
[1738433353628,0.0001,227.11,227.1,12.83004235]
[1738433353834,0.0001,227.11,227.1,149.09029808]
[1738433354042,0.0001,227.11,227.1,148.43004235]
[1738433356137,0.0001,227.11,227.1,152.83334235]
[1738433364640,0.0001,227.11,227.1,248.74519088]
[1738433371843,0.0001,227.11,227.1,235.33334235]
[1738433375752,0.0001,227.11,227.1,230.69574726]
[1738433380456,0.0001,227.11,227.1,82.5]
[1738433380959,0.0001,227.11,227.06,135.6]
[1738433381354,0.0001,227.11,227.05,218.1]
[1738433381538,0.0001,227.11,227.06,0.66051958]
[1738433382556,0.0001,227.11,227.05,218.1]
[1738433384153,20.0,227.1,227.01,143.82244726]
[1738433384345,20.0,227.1,227.02,0.66063587]
[1738433385356,6.6314,227.09,227.01,0.69064216]
[1738433387176,6.6314,227.09,227.01,8.88308942]
[1738433387363,6.6314,227.09,227.03,8.19244726]
[1738433387542,6.6314,227.09,227.02,8.85303356]
[1738433388641,6.6314,227.09,227.03,0.6606057]
[1738433391171,6.6314,227.09,227.03,8.85305296]
[1738433391356,0.0001,227.11,227.05,8.19244726]
[1738433391546,0.0001,227.11,227.06,0.66050879]
[1738433392360,20.0,227.1,227.04,0.66054044]
[1738433392764,20.0,227.1,227.03,143.79244726]
[1738433392966,20.0,227.1,227.04,0.66059374]
[1738433393168,0.063,227.09,227.04,0.66059374]
[1738433393874,0.063,227.09,227.03,143.79244726]
[1738433394574,0.063,227.09,227.03,135.6]
[1738433395264,21.6092,227.06,227.03,135.6]
[1738433395464,21.6092,227.06,227.01,0.03]
[1738433402380,6.3788,227.04,227.01,0.03]
[1738433405681,33.41184853,227.02,227.01,0.03]
[1738433416612,13.41184853,227.01,226.96,0.03]
[1738433416810,13.41184853,226.97,226.96,0.03]
[1738433421982,1.5508,226.98,226.96,0.03]
[1738433422213,2.9,227.02,226.96,0.03]
[1738433422706,20.0,226.99,226.96,0.03]
[1738433422904,1.6497,227.03,226.96,0.03]
[1738433423084,82.6,227.07,226.96,0.03]
[1738433423289,13.41184853,227.07,226.96,8.88325509]
[1738433423602,13.41184853,227.07,226.96,8.22244726]
[1738433423808,13.41184853,227.08,226.97,8.19244726]
[1738433423986,13.41184853,227.08,226.98,8.19244726]
[1738433424318,13.41184853,227.08,226.99,0.66075393]
[1738433424683,20.0,227.05,226.99,0.66075393]
[1738433424883,20.0,227.05,226.98,0.66074069]
[1738433425915,20.0,227.05,226.97,0.66077115]
[1738433426797,20.0,227.05,226.97,5.06657115]
[1738433426996,20.0,227.05,226.98,8.19244726]
[1738433428023,20.0,227.05,226.99,0.66074274]
[1738433429218,20.0,227.05,226.98,8.19244726]
[1738433429607,20.0,227.05,226.98,0.66076135]
[1738433429806,20.063,227.06,226.98,8.85320861]
[1738433430021,0.063,227.06,227.02,8.19244726]
[1738433430192,0.063,227.06,227.03,0.66060484]
[1738433432041,0.063,227.06,227.04,8.19244726]
[1738433432198,0.063,227.06,227.05,8.85296704]
[1738433432532,0.063,227.06,227.05,226.95296704]
[1738433432729,0.063,227.06,227.05,226.29244726]
[1738433433299,0.063,227.06,227.05,230.69674726]
[1738433433934,0.063,227.06,227.05,218.1]
[1738433434213,0.063,227.06,227.01,1.5886]
[1738433434410,0.063,227.06,227.02,0.66063852]
[1738433436535,0.063,227.06,227.05,12.81412435]
[1738433438540,0.063,227.06,227.05,17.21842435]
[1738433438842,0.063,227.06,227.05,31.290654]
[1738433439036,0.063,227.09,227.06,13.41184853]
[1738433439215,0.063,227.09,227.08,12.81412435]
[1738433439407,0.063,227.09,227.08,230.91412435]
[1738433439926,0.063,227.09,227.08,252.36877288]
[1738433440308,0.0001,227.09,227.08,256.77247288]
[1738433442445,0.0001,227.09,227.08,243.36062435]
[1738433443608,0.0001,227.09,227.08,256.77247288]
[1738433445145,0.0001,227.09,227.08,257.77247288]
[1738433445517,0.0001,227.09,227.08,256.77247288]
[1738433445819,0.0001,227.09,227.08,257.77247288]
[1738433446142,0.0001,227.09,227.08,256.77247288]
[1738433451041,0.0001,227.09,227.08,256.72891168]
[1738433455733,0.0001,227.09,227.08,252.15094265]
[1738433457765,0.0001,227.09,227.08,245.69634265]
[1738433460260,0.0001,227.09,227.08,232.28449412]
[1738433460464,0.0001,227.09,227.08,230.69629412]
[1738433460664,0.0001,227.09,227.08,222.5037]
[1738433460881,0.0001,227.09,227.08,218.1]
[1738433461545,0.0001,227.09,227.08,82.5]
[1738433463980,0.0001,227.09,227.08,95.09629412]
[1738433464353,0.0001,227.09,227.08,244.10814265]
[1738433464547,0.0001,227.09,227.08,230.69629412]
[1738433464772,0.0001,227.09,227.08,222.5037]
[1738433464973,0.0001,227.09,227.04,222.5044]
[1738433465170,0.0001,227.09,227.05,0.66052778]
[1738433466181,0.0001,227.09,227.04,218.1]
[1738433466674,0.0001,227.09,227.05,0.66057019]
[1738433468593,0.0001,227.09,227.05,95.75736431]
[1738433468808,0.0001,227.09,227.08,8.19259412]
[1738433468970,0.0001,227.09,227.08,8.852957]
[1738433469666,0.0001,227.09,227.08,0.66036288]
[1738433469882,0.0001,227.09,227.08,5.06406288]
[1738433472996,0.0001,227.09,227.08,13.256657]
[1738433474607,0.0001,227.09,227.08,231.356657]
[1738433474791,0.0001,227.09,227.08,222.5037]
[1738433479082,0.0001,227.09,227.08,222.5337]
[1738433479686,0.0001,227.09,227.08,218.13]
[1738433480202,0.0001,227.09,227.08,222.5337]
[1738433484010,0.0001,227.09,227.08,235.94554853]
[1738433484916,0.0001,227.11,227.1,28.19259412]
[1738433485204,0.0001,227.11,227.1,42.26458077]
[1738433485711,0.0001,227.11,227.1,260.36458077]
[1738433485874,0.03,227.22,227.19,8.19259412]
[1738433486211,0.03,227.22,227.2,13.25404132]
[1738433487980,0.03,227.22,227.2,231.35404132]
[1738433488208,0.03,227.22,227.2,230.69399412]
[1738433488517,0.03,227.22,227.21,0.65999556]
[1738433488691,0.03,227.22,227.21,226.95258968]
[1738433488896,0.03,227.22,227.21,226.29259412]
[1738433489298,0.03,227.22,227.21,239.70444265]
[1738433493097,0.0001,227.22,227.21,239.70444265]
[1738433493405,0.0001,227.22,227.21,240.70444265]
[1738433494294,0.0001,227.22,227.21,244.10564265]
[1738433494804,0.0001,227.22,227.21,230.69379412]
[1738433495509,0.0001,227.22,227.21,244.10564265]
[1738433497402,0.0001,227.22,227.21,245.10564265]
[1738433498691,0.0001,227.22,227.21,244.10564265]
[1738433501623,0.0001,227.25,227.24,21.0]
[1738433501790,0.0001,227.27,227.26,14.41184853]
[1738433501994,0.0001,227.27,227.26,56.03448198]
[1738433503203,0.0001,227.27,227.26,60.43468198]
[1738433503707,0.0001,227.27,227.26,45.02542378]
[1738433504330,0.0001,227.27,227.26,264.12542378]
[1738433504532,0.063,227.29,227.28,14.41184853]
[1738433504533,0.0001,227.29,227.28,14.41184853]
[1738433504714,0.03,227.34,227.31,20.0]
[1738433504914,0.03,227.34,227.31,251.53638956]
[1738433505115,0.03,227.34,227.31,250.8768562]
[1738433505834,0.03,227.34,227.31,255.2760562]
[1738433508017,7.6683,227.46,227.35,20.0]
[1738433508220,1.0,227.53,227.35,20.0]
[1738433508221,7.6683,227.53,227.4,12.7768562]
[1738433508419,7.6683,227.53,227.41,0.65942108]
[1738433508834,20.0,227.5,227.41,0.65942108]
[1738433509442,20.0,227.5,227.41,5.05662108]
[1738433509809,7.6683,227.53,227.41,235.93347728]
[1738433510040,7.6683,227.53,227.41,235.2740562]
[1738433510965,20.0,227.5,227.41,222.4972]
[1738433511109,20.0,227.5,227.42,5.05646533]
[1738433511942,7.6683,227.53,227.42,5.05646533]
[1738433512122,7.6683,227.53,227.42,17.83332153]
[1738433512434,7.6683,227.53,227.43,30.58560473]
[1738433512847,7.6683,227.53,227.43,31.24486223]
[1738433516143,7.6683,227.53,227.43,249.34486223]
[1738433516438,7.6683,227.53,227.43,248.68560473]
[1738433517350,7.6683,227.53,227.43,218.1]
[1738433518952,20.0,227.5,227.43,218.1]
[1738433519456,20.0,227.5,227.37,218.1]
[1738433519618,1.5838,227.44,227.38,0.65950813]
[1738433520534,1.5838,227.44,227.38,218.75950813]
[1738433520737,1.5838,227.44,227.38,82.5]
[1738433523750,1.5838,227.44,227.39,0.65958752]
[1738433524443,1.5838,227.44,227.37,0.65958495]
[1738433524744,1.5838,227.44,227.36,135.6]
[1738433524931,20.0,227.42,227.32,218.1]
[1738433525119,20.0,227.42,227.33,0.6596802]
[1738433525650,20.0,227.42,227.32,218.1]
[1738433525651,21.0,227.42,227.32,218.1]
[1738433525948,21.0,227.42,227.27,235.2766562]
[1738433526146,21.0,227.42,227.28,0.65978947]
[1738433527037,21.0,227.42,227.33,0.03]
[1738433528244,20.0,227.38,227.33,0.03]
[1738433534826,21.505,227.34,227.33,0.03]
[1738433535050,27.8408,227.34,227.33,0.03]
[1738433535843,27.8408,227.34,227.23,0.65997485]
[1738433535844,41.25264853,227.34,227.23,0.65997485]
[1738433536055,20.0,227.3,227.22,0.6600457]
[1738433536555,20.0,227.31,227.22,0.6600457]
[1738433537133,20.0,227.31,227.21,83.19000631]
[1738433538032,20.0,227.31,227.22,0.03]
[1738433538658,7.8408,227.34,227.26,12.79145027]
[1738433538854,7.8408,227.34,227.27,13.4513264]
[1738433539955,7.8408,227.34,227.27,0.65987613]
[1738433540153,7.8408,227.34,227.27,17.8511264]
[1738433540362,7.8408,227.34,227.28,12.79145027]
[1738433540537,7.8408,227.34,227.29,0.6598274]
[1738433540758,1.505,227.34,227.29,0.6598274]
[1738433541156,20.0,227.36,227.29,0.6598274]
[1738433542035,20.0,227.36,227.29,5.0594274]
[1738433544870,20.0,227.36,227.28,218.1]
[1738433545448,20.0,227.32,227.22,218.13]
[1738433545654,20.0,227.32,227.23,0.66000223]
[1738433548966,1.5767,227.31,227.22,82.53]
[1738433549141,20.0,227.27,227.22,82.53]
[1738433549466,20.0,227.27,227.22,0.03]
[1738433550052,6.108,227.3,227.22,0.03]
[1738433550548,20.0,227.27,227.22,0.03]
[1738433567480,20.0,227.27,227.22,0.69007459]
[1738433568283,6.108,227.3,227.22,5.09107459]
[1738433568482,0.063,227.33,227.22,5.09107459]
[1738433568680,20.0,227.31,227.24,8.18972939]
[1738433568867,20.0,227.31,227.25,0.65995102]
[1738433569086,0.063,227.33,227.25,144.44968041]
[1738433569286,0.063,227.33,227.25,143.78972939]
[1738433569471,0.063,227.33,227.25,135.6]
[1738433569674,20.063,227.33,227.25,135.6]
[1738433570184,20.063,227.33,227.25,140.0002]
[1738433570395,0.063,227.33,227.26,8.8495956]
[1738433570878,0.063,227.33,227.26,0.65986621]
[1738433578197,20.063,227.33,227.26,0.65986621]
[1738433578372,20.063,227.33,227.25,82.5]
[1738433579493,20.063,227.33,227.26,0.6599497]
[1738433579902,20.063,227.33,227.25,83.15993918]
[1738433580199,20.063,227.33,227.25,82.5]
[1738433580876,20.0,227.29,227.25,82.5]
[1738433582516,20.0,227.28,227.25,82.5]
[1738433582819,20.0,227.28,227.22,0.03]
[1738433583505,20.0,227.24,227.22,0.03]
[1738433584785,13.41184853,227.23,227.22,0.03]
[1738433584970,13.41184853,227.23,227.11,1.5391]
[1738433584971,20.0,227.2,227.11,1.5391]
[1738433585607,20.0,227.2,227.12,0.66037156]
[1738433588196,20.0,227.2,227.12,5.06327156]
[1738433590891,20.0,227.2,227.12,0.66037156]
[1738433591277,20.0,227.19,227.11,218.13]
[1738433591495,20.0,227.19,227.11,82.53]
[1738433591800,13.41184853,227.18,227.11,0.03]
[1738433591991,20.0,227.15,227.11,0.03]
[1738433592175,13.41184853,227.19,227.11,0.03]
[1738433592582,20.0,227.16,227.11,0.03]
[1738433593889,18.47431771,227.19,227.11,0.03]
[1738433594277,20.0,227.16,227.11,0.03]
[1738433598709,20.0,227.15,227.11,0.03]
[1738433598898,20.0,227.12,227.11,0.03]
[1738433599404,33.41184853,227.13,227.11,0.03]
[1738433599601,34.41184853,227.13,227.11,0.03]
[1738433599991,33.41184853,227.13,227.11,0.03]
[1738433602206,34.41184853,227.13,227.11,0.03]
[1738433602412,35.41184853,227.13,227.11,0.03]
[1738433604519,34.41184853,227.13,227.11,0.03]
[1738433605225,116.01184853,227.13,227.11,0.03]
[1738433608323,102.6,227.13,227.11,0.03]
[1738433610905,82.6,227.13,227.11,0.03]
[1738433611129,20.0,227.15,227.11,0.03]
[1738433615832,87.115,227.21,227.13,8.18972939]
[1738433615833,82.663,227.21,227.13,8.18972939]
[1738433616036,0.063,227.21,227.14,8.85001023]
[1738433616341,0.063,227.21,227.16,8.18972939]
[1738433616510,0.063,227.21,227.17,0.66015774]
[1738433619741,0.063,227.21,227.14,82.5]
[1738433622543,0.063,227.21,227.14,83.16029919]
[1738433624641,0.063,227.21,227.14,87.56279919]
[1738433624825,0.063,227.21,227.14,86.9025]
[1738433625950,0.063,227.21,227.14,99.70807278]
[1738433626254,0.063,227.21,227.15,0.66015767]
[1738433627149,0.063,227.21,227.16,4.4021]
[1738433627350,0.063,227.21,227.17,0.66012844]
[1738433628155,0.063,227.21,227.18,4.4017]
[1738433628356,0.063,227.21,227.19,0.66010799]
[1738433628559,0.063,227.21,227.19,13.46568077]
[1738433629253,0.063,227.21,227.19,0.66010799]
[1738433629954,0.063,227.21,227.2,4.4014]
[1738433630639,0.063,227.21,227.2,99.70697278]
[1738433630952,0.063,227.21,227.2,235.30697278]
[1738433632038,0.063,227.21,227.2,222.5014]
[1738433633859,0.063,227.21,227.2,218.1]
[1738433634758,0.063,227.21,227.18,1.5227]
[1738433634930,0.063,227.21,227.16,82.5]
[1738433637263,0.063,227.21,227.17,0.66021007]
[1738433638342,0.063,227.21,227.16,83.16021413]
[1738433639961,0.063,227.21,227.16,87.56231413]
[1738433640268,0.063,227.21,227.16,86.9021]
[1738433641435,0.063,227.21,227.17,0.66017737]
[1738433642862,0.063,227.21,227.17,5.06207737]
[1738433643029,0.063,227.21,227.19,12.80557278]
[1738433643342,0.063,227.21,227.2,0.66006909]
[1738433646753,0.063,227.21,227.2,83.16006909]
[1738433648041,0.063,227.21,227.2,82.5]
[1738433648945,0.063,227.21,227.2,83.16011404]
[1738433650061,0.063,227.21,227.2,82.5]
[1738433651655,0.063,227.21,227.17,0.03]
[1738433652437,20.0,227.19,227.17,0.03]
[1738433653961,13.41184853,227.18,227.17,0.03]
[1738433654168,20.0,227.15,227.11,0.03]
[1738433655567,33.41184853,227.12,227.11,0.03]
[1738433656366,34.41184853,227.12,227.08,0.03]
[1738433658089,20.0,227.09,227.08,0.03]
[1738433658385,20.0,227.09,227.02,0.03]
[1738433658386,20.0,227.05,227.02,0.03]
[1738433659680,13.41184853,227.04,227.02,0.03]
[1738433664876,20.0,227.05,227.02,0.03]
[1738433665178,20.0,227.04,227.02,0.03]
[1738433667077,96.01184853,227.07,227.02,0.03]
[1738433667578,20.0,227.04,227.02,0.03]
[1738433669759,20.0,227.08,227.02,0.03]
[1738433675801,0.063,227.12,227.04,12.81801792]
[1738433675994,0.063,227.12,227.05,0.66053225]
[1738433676497,20.0,227.11,227.04,0.66054838]
[1738433678507,20.0,227.11,227.03,82.5]
[1738433678887,20.0,227.07,227.03,82.5]
[1738433679189,20.0,227.07,227.02,0.03]
[1738433679405,13.41184853,227.06,227.02,0.03]
[1738433679703,20.0,227.03,227.02,0.03]
[1738433681412,33.41184853,227.03,227.02,0.03]
[1738433686031,33.41184853,227.03,226.98,0.03]
[1738433686032,20.0,226.99,226.98,0.03]
[1738433686678,33.41184853,226.99,226.98,0.03]
[1738433690595,20.0,226.99,226.98,0.03]
[1738433691898,20.063,226.99,226.98,0.03]
[1738433700505,33.47484853,226.99,226.98,0.03]
[1738433700717,14.41184853,226.98,226.94,0.03]
[1738433701723,20.0,226.97,226.94,0.03]
[1738433702098,0.063,226.99,226.94,0.03]
[1738433704693,33.41184853,226.97,226.94,0.03]
[1738433708421,0.063,226.99,226.95,12.83093434]
[1738433708804,0.063,226.99,226.94,2.30543168]
[1738433710716,0.063,226.99,226.94,0.03]
[1738433710919,20.0,226.97,226.94,0.03]
[1738433711148,33.41184853,226.97,226.94,0.03]
[1738433718335,33.41184853,226.97,226.93,0.03]
[1738433718336,20.0,226.94,226.93,0.03]
[1738433718626,33.41184853,226.94,226.93,0.03]
[1738433718816,33.41184853,226.94,226.88,0.03]
[1738433719006,13.41184853,226.89,226.88,0.03]
[1738433719513,20.0,226.89,226.88,0.03]
[1738433723510,34.41184853,226.89,226.88,0.03]
[1738433723814,19.45884853,226.88,226.87,0.03]
[1738433724027,33.41184853,226.86,226.85,0.03]
[1738433726007,6.03225865,226.93,226.85,0.03]
[1738433726242,11.10946918,226.94,226.85,0.03]
[1738433726402,82.6,226.93,226.85,0.03]
[1738433726807,20.0,226.9,226.85,0.03]
[1738433727935,20.0,226.89,226.85,0.03]
[1738433728227,82.6,226.93,226.85,0.69122298]
[1738433729120,82.6,226.93,226.85,0.03]
[1738433729647,82.6,226.93,226.85,4.4381]
[1738433729814,82.6,226.93,226.86,0.66111005]
[1738433730650,82.6,226.93,226.85,0.69111068]
[1738433730846,13.41184853,226.95,226.85,5.09921068]
[1738433730847,20.0,226.95,226.85,5.09921068]
[1738433733849,20.0,226.95,226.85,87.59921068]
[1738433734053,20.0,226.95,226.85,86.9381]
[1738433735147,20.0,226.95,226.86,0.66104532]
[1738433735871,20.0,226.95,226.86,5.06894532]
[1738433736234,0.063,226.97,226.9,12.83093434]
[1738433736547,0.063,226.97,226.91,13.49184608]
[1738433736858,0.063,226.97,226.91,0.66091174]
[1738433737228,0.063,226.97,226.9,82.5]
[1738433739452,13.47484853,226.97,226.9,82.5]
[1738433739653,13.41184853,226.93,226.87,1.6542]
[1738433739951,13.41184853,226.93,226.85,0.03]
[1738433740855,20.0,226.9,226.85,0.03]
[1738433744869,20.0,226.89,226.85,0.03]
[1738433749276,82.6,226.92,226.85,0.03]
[1738433749668,82.6,226.95,226.86,0.66114776]
[1738433749862,0.063,226.98,226.88,12.83093434]
[1738433750067,0.063,226.98,226.89,0.66098724]
[1738433750270,0.063,226.98,226.89,13.49192158]
[1738433750775,13.47484853,226.98,226.89,0.66098724]
[1738433750958,20.0,226.95,226.88,0.66103321]
[1738433751158,20.0,226.95,226.87,0.66103632]
[1738433751359,20.0,226.95,226.86,6.3347]
[1738433751558,13.41184853,226.94,226.85,0.03]
[1738433751754,20.0,226.91,226.85,0.03]
[1738433751957,13.41184853,226.9,226.85,0.03]
[1738433756170,20.0,226.87,226.85,0.03]
[1738433757164,13.41184853,226.86,226.85,0.03]
[1738433759491,14.41184853,226.9,226.85,0.03]
[1738433759697,33.41184853,226.86,226.85,0.03]
[1738433761886,20.0,226.83,226.82,0.03]
[1738433762117,33.41184853,226.83,226.82,0.0001]
[1738433762276,33.41184853,226.83,226.66,1.6021]
[1738433762277,1.0,226.78,226.66,1.6021]
[1738433762471,13.41184853,226.76,226.66,1.6021]
[1738433762697,20.0,226.73,226.66,1.6021]
[1738433763186,13.41184853,226.72,226.66,1.6021]
[1738433763487,20.0,226.69,226.63,6.6399]
[1738433764274,20.0,226.75,226.64,13.49276379]
[1738433764471,13.41184853,226.74,226.64,13.49276379]
[1738433764665,20.0,226.71,226.64,0.66182945]
[1738433764867,13.41184853,226.7,226.63,6.6399]
[1738433766675,13.41184853,226.7,226.62,0.03]
[1738433767197,20.0,226.67,226.62,0.03]
[1738433767494,13.41184853,226.7,226.62,5.10433904]
[1738433767689,13.41184853,226.7,226.62,0.69183904]
[1738433768393,13.41184853,226.7,226.62,0.03]
[1738433769530,82.6,226.73,226.62,0.03]
[1738433769814,82.6,226.73,226.63,5.07409346]
[1738433769972,20.0,226.7,226.64,12.83093434]
[1738433770173,82.6,226.73,226.65,0.66170854]
[1738433770495,82.6,226.73,226.64,0.66173236]
[1738433771382,82.6,226.73,226.64,5.07393236]
[1738433771993,82.6,226.73,226.64,4.4122]
[1738433773406,82.6,226.73,226.63,4.4124]
[1738433773799,82.6,226.73,226.64,0.66174476]
[1738433774733,82.6,226.78,226.65,12.83093434]
[1738433774896,82.6,226.78,226.66,0.66163892]
[1738433775289,20.0,226.74,226.66,0.66163892]
[1738433776213,13.41184853,226.77,226.68,1.5656]
[1738433776415,13.41184853,226.77,226.68,2.22722235]
[1738433776626,20.0,226.77,226.68,2.22722235]
[1738433777403,20.0,226.77,226.68,6.63862235]
[1738433778321,20.0,226.73,226.68,1.5656]
[1738433781019,20.0,226.76,226.68,6.63863048]
[1738433781221,20.0,226.76,226.68,1.5656]
[1738433782531,20.0,226.72,226.68,1.5656]
[1738433782902,20.0,226.72,226.63,2.28047879]
[1738433783103,20.0,226.72,226.63,6.69277879]
[1738433786824,20.0,226.72,226.63,1.6188]
[1738433787895,20.0,226.68,226.63,1.6188]
[1738433788097,20.0,226.68,226.62,0.03]
[1738433788721,33.41184853,226.67,226.62,0.03]
[1738433790114,34.41184853,226.67,226.62,0.03]
[1738433790320,20.0,226.61,226.52,1.6488]
[1738433790510,20.0,226.57,226.52,0.03]
[1738433791645,20.317728,226.6,226.52,0.03]
[1738433792003,20.0,226.56,226.52,0.03]
[1738433792337,5.06246918,226.63,226.52,0.03]
[1738433792504,20.0,226.58,226.53,0.6620733]
[1738433792707,20.0,226.58,226.52,0.69208286]
[1738433793436,21.5549,226.66,226.52,0.69208286]
[1738433794042,20.0,226.62,226.52,0.69208286]
[1738433794534,20.0,226.58,226.52,0.69208286]
[1738433794730,20.0,226.58,226.52,0.03]
[1738433795134,20.0,226.58,226.52,0.69209066]
[1738433795941,20.0,226.58,226.52,0.03]
[1738433805320,20.0,226.54,226.52,0.03]
[1738433807940,20.0,226.6,226.52,0.03]
[1738433808245,20.0,226.55,226.52,0.03]
[1738433809039,13.41184853,226.54,226.5,0.3]
[1738433809244,20.0,226.49,226.41,1.5331]
[1738433809445,13.41184853,226.48,226.41,1.5331]
[1738433810132,7.2367,226.53,226.41,1.5331]
[1738433810133,20.0,226.5,226.41,1.5331]
[1738433810746,20.0,226.49,226.41,1.5331]
[1738433812623,13.41184853,226.48,226.41,0.03]
[1738433813225,20.0,226.45,226.41,0.03]
[1738433825199,6.2367,226.53,226.41,13.52346389]
[1738433825503,13.41184853,226.54,226.41,0.69252955]
[1738433826271,13.41184853,226.54,226.42,4.4165]
[1738433826994,20.0,226.51,226.42,4.4165]
[1738433827500,20.0,226.51,226.43,0.66236436]
[1738433827671,20.0,226.51,226.42,5.07886338]
[1738433834003,20.0,226.51,226.42,0.66236338]
[1738433834303,20.0,226.51,226.42,5.07886338]
[1738433837388,2.92,226.56,226.43,1.5011]
[1738433837585,14.42298084,226.59,226.43,1.5011]
[1738433837586,14.42298084,226.59,226.44,0.6622595]
[1738433837786,20.0,226.56,226.44,0.6622595]
[1738433837987,20.0,226.55,226.44,0.6622595]
[1738433838705,20.0,226.55,226.44,5.0782595]
[1738433840209,20.0,226.55,226.46,4.4157]
[1738433840427,20.0,226.55,226.47,0.66217278]
[1738433840987,10.27822471,226.59,226.47,0.66217278]
[1738433841190,13.31984775,226.62,226.48,8.24499731]
[1738433841392,13.31984775,226.62,226.49,0.66206365]
[1738433841804,20.0,226.58,226.49,0.66206365]
[1738433842315,20.0,226.58,226.5,0.66211564]
[1738433842493,20.0,226.58,226.48,4.4154]
[1738433842698,13.31984775,226.62,226.49,0.6620865]
[1738433842924,20.0,226.59,226.49,0.6620865]
[1738433843083,13.31984775,226.62,226.51,6.0042]
[1738433843288,13.31984775,226.62,226.52,0.66199471]
[1738433843908,0.063,226.62,226.53,8.24499731]
[1738433844109,0.063,226.62,226.56,9.83189731]
[1738433844313,0.063,226.62,226.57,0.66187418]
[1738433844614,0.063,226.62,226.56,2.24879409]
[1738433844907,0.063,226.62,226.56,1.5869]
[1738433845304,0.063,226.62,226.57,0.6619633]
[1738433845688,0.063,226.62,226.56,2.2488635]
[1738433846407,0.063,226.62,226.56,1.5869]
[1738433846715,0.063,226.62,226.57,0.66199026]
[1738433846883,0.063,226.62,226.57,5.07559026]
[1738433848029,0.063,226.62,226.57,0.66199026]
[1738433848388,0.063,226.62,226.57,5.07559026]
[1738433849611,8.1799,226.73,226.57,5.07559026]
[1738433849612,0.063,226.77,226.73,14.41184853]
[1738433849805,0.063,226.77,226.76,8.24499731]
[1738433850033,0.063,226.77,226.76,0.66123855]
[1738433850330,0.063,226.77,226.74,0.66131159]
[1738433850608,0.063,226.77,226.7,0.66144751]
[1738433852409,20.0,226.76,226.67,0.66158895]
[1738433852615,20.0,226.76,226.65,0.6616443]
[1738433853725,20.0,226.72,226.65,0.6616443]
[1738433853933,20.0,226.72,226.62,0.6617222]
[1738433854096,20.0,226.68,226.58,0.66178835]
[1738433857820,20.063,226.68,226.58,0.66178835]
[1738433860624,0.063,226.68,226.61,12.85084443]